fUST/lending_fUST_20250912
["ID","MTS","AMOUNT","RATE_DAILY","PERIOD"]
[384876914,1757607040789,-480.0,0.00013936,2]
[384876915,1757607040799,-480.0,0.00013936,2]
[384876916,1757607040808,-480.0,0.00013936,2]
[384876917,1757607040819,-480.0,0.00013936,2]
[384876918,1757607040828,-480.0,0.00013936,2]
[384876919,1757607040838,-500.0,0.00013936,2]
[384876920,1757607040847,-500.0,0.00013936,2]
[384876921,1757607040858,-480.0,0.00013936,2]
[384876922,1757607040867,-480.0,0.00013936,2]
[384876923,1757607040878,-480.0,0.00013936,2]
[384876924,1757607040888,-480.0,0.00013936,2]
[384876925,1757607040897,-480.0,0.00013936,2]
[384876926,1757607040907,-480.0,0.00013936,2]
[384876927,1757607040917,-480.0,0.00013936,2]
[384876928,1757607040927,-161.18891538,0.00013936,2]
[384876929,1757607040936,-480.0,0.00013936,2]
[384876930,1757607040946,-480.0,0.00013936,2]
[384876931,1757607040955,-480.0,0.00013936,2]
[384876932,1757607040965,-480.0,0.00013936,2]
[384876933,1757607040974,-480.0,0.00013936,2]
[384876934,1757607040985,-480.0,0.00013936,2]
[384876935,1757607040994,-480.0,0.00013938,2]
[384876936,1757607041005,-480.0,0.00013938,2]
[384876937,1757607041017,-480.0,0.00013938,2]
[384876938,1757607041026,-480.0,0.00013938,2]
[384876939,1757607041036,-480.0,0.00013938,2]
[384876940,1757607041046,-480.0,0.00013938,2]
[384876941,1757607041056,-480.0,0.00013938,2]
[384876942,1757607041066,-474.91383403,0.00013938,2]
[384876943,1757607041076,-480.0,0.00013938,2]
[384876944,1757607041087,-480.0,0.00013938,2]
[384876945,1757607041097,-480.0,0.00013938,2]
[384876946,1757607041107,-480.0,0.00013938,2]
[384876947,1757607041118,-480.0,0.00013938,2]
[384876948,1757607041128,-500.0,0.00013973,2]
[384876949,1757607041137,-501.9381638,0.00013973,2]
[384876950,1757607041145,-355.58149535,0.00013973,2]
[384876951,1757607041154,-480.0,0.000141,2]
[384876952,1757607041163,-480.0,0.000141,2]
[384876953,1757607041172,-680.62,0.000141,2]
[384876954,1757607041181,-480.0,0.000141,2]
[384876955,1757607041190,-480.0,0.00014102,2]
[384876956,1757607041201,-317.55,0.00014102,2]
[384876957,1757607041210,-480.0,0.00014102,2]
[384876958,1757607041219,-218.22,0.00014102,2]
[384876959,1757607041232,-225.02,0.00014102,2]
[384876960,1757607041242,-1414.58,0.00014102,2]
[384876961,1757607041252,-151.0,0.00014102,2]
[384876962,1757607041262,-1055.38,0.00014102,2]
[384876963,1757607041272,-480.0,0.00014102,2]
[384876964,1757607041282,-480.0,0.00014102,2]
[384876965,1757607041291,-480.0,0.00014102,2]
[384876966,1757607041301,-672.68,0.00014102,2]
[384876967,1757607041312,-1044.85,0.00014102,2]
[384876968,1757607041322,-786.62,0.00014102,2]
[384876969,1757607041332,-1109.34,0.00014102,2]
[384876970,1757607041341,-624.21655356,0.00014102,2]
[384876971,1757607041351,-480.0,0.00014102,2]
[384876972,1757607041360,-480.0,0.00014102,2]
[384876973,1757607041369,-504.67,0.00014102,2]
[384876974,1757607041379,-480.0,0.00014102,2]
[384876975,1757607041389,-480.0,0.00014102,2]
[384876976,1757607041399,-480.0,0.00014102,2]
[384876977,1757607041409,-480.0,0.00014102,2]
[384876978,1757607041418,-480.0,0.00014102,2]
[384876979,1757607041428,-306.38,0.00014102,2]
[384876980,1757607041438,-480.0,0.00014102,2]
[384876981,1757607041447,-568.74,0.00014102,2]
[384876982,1757607041457,-480.0,0.00014102,2]
[384876983,1757607041466,-480.0,0.00014102,2]
[384876984,1757607041476,-300.0,0.00014104,2]
[384876985,1757607041485,-300.0,0.00014104,2]
[384876986,1757607041495,-300.0,0.00014104,2]
[384876987,1757607041505,-300.0,0.00014104,2]
[384876988,1757607041514,-300.0,0.00014104,2]
[384876989,1757607041523,-300.0,0.00014104,2]
[384876990,1757607041533,-300.0,0.00014104,2]
[384876991,1757607041542,-300.0,0.00014104,2]
[384876992,1757607041551,-300.0,0.00014104,2]
[384876993,1757607041560,-287.83131551,0.00014104,2]
[384876994,1757607041612,-12.16868449,0.00014104,2]
[384876995,1757607041622,-300.0,0.00014104,2]
[384876996,1757607041632,-300.0,0.00014104,2]
[384876997,1757607041642,-300.0,0.00014104,2]
[384876998,1757607041651,-300.0,0.00014104,2]
[384876999,1757607041660,-300.0,0.00014104,2]
[384877000,1757607041670,-600.0,0.00014104,2]
[384877001,1757607041774,-151.0,0.00014104,2]
[384877002,1757607041785,-480.0,0.00014107,2]
[384877003,1757607041795,-480.0,0.00014107,2]
[384877004,1757607041805,-480.0,0.00014107,2]
[384877005,1757607041814,-594.23131551,0.00014108,2]
[384877006,1757607042238,-2426.29868449,0.00014108,2]
[384877007,1757607042247,-687.42,0.00014108,2]
[384877008,1757607042256,-151.0,0.00014108,2]
[384877009,1757607042265,-485.09,0.00014109,2]
[384877010,1757607042274,-1252.52,0.00014109,2]
[384877011,1757607042283,-798.18,0.00014109,2]
[384877012,1757607042292,-480.0,0.00014109,2]
[384877013,1757607042301,-1223.84,0.00014109,2]
[384877014,1757607042310,-1846.6745234,0.00014205,2]
[384877015,1757607042319,-151.0,0.00014205,2]
[384877016,1757607042328,-151.0,0.00014205,2]
[384877017,1757607042337,-151.0,0.00014205,2]
[384877018,1757607042345,-151.0,0.00014205,2]
[384877019,1757607042354,-938.9,0.00014205,2]
[384877020,1757607042363,-480.0,0.00014205,2]
[384877021,1757607042372,-7133.82,0.00014205,2]
[384877022,1757607042381,-480.0,0.00014205,2]
[384877023,1757607042390,-800.96,0.00014205,2]
[384877024,1757607042399,-480.0,0.00014207,2]
[384877025,1757607042408,-320.11,0.00014207,2]
[384877026,1757607042417,-480.0,0.00014207,2]
[384877027,1757607042426,-551.67,0.00014207,2]
[384877028,1757607042434,-480.0,0.00014207,2]
[384877029,1757607042443,-480.0,0.00014207,2]
[384877030,1757607042452,-480.0,0.00014207,2]
[384877031,1757607042461,-480.0,0.00014207,2]
[384877032,1757607042470,-610.64,0.00014207,2]
[384877033,1757607042479,-576.14,0.00014207,2]
[384877034,1757607042488,-480.0,0.00014207,2]
[384877035,1757607042497,-480.0,0.00014208,2]
[384877036,1757607042506,-622.42,0.00014208,2]
[384877037,1757607042515,-480.0,0.00014208,2]
[384877038,1757607042524,-348.56449387,0.00014208,2]
[384877039,1757607042533,-350.64080612,0.00014208,2]
[384877040,1757607042542,-480.0,0.00014208,2]
[384877041,1757607042552,-480.0,0.00014208,2]
[384877042,1757607042561,-433.54604035,0.00014208,2]
[384877043,1757607042570,-172.08,0.00014208,2]
[384877044,1757607042578,-480.0,0.00014208,2]
[384877045,1757607042587,-480.0,0.00014208,2]
[384877046,1757607042596,-480.0,0.00014208,2]
[384877047,1757607042605,-480.0,0.0001421,2]
[384877048,1757607042614,-480.0,0.0001421,2]
[384877049,1757607042623,-480.0,0.0001421,2]
[384877050,1757607042631,-480.0,0.0001421,2]
[384877051,1757607042640,-480.0,0.0001421,2]
[384877052,1757607042649,-480.0,0.0001421,2]
[384877053,1757607042659,-480.0,0.0001421,2]
[384877054,1757607042668,-480.0,0.0001421,2]
[384877055,1757607042677,-480.0,0.0001421,2]
[384877056,1757607042686,-480.0,0.0001421,2]
[384877057,1757607042695,-480.0,0.0001421,2]
[384877058,1757607042704,-480.0,0.00014212,2]
[384877059,1757607042713,-217.69300629,0.00014257,2]
[384877060,1757607042722,-846.96613202,0.00014257,2]
[384877061,1757607042731,-233.10680167,0.00014257,2]
[384877062,1757607042739,-417.15472785,0.00014257,2]
[384877063,1757607042748,-160.0,0.00014257,2]
[384877064,1757607042758,-530.95967032,0.00014257,2]
[384877065,1757607042767,-160.0,0.00014257,2]
[384877066,1757607042776,-160.0,0.00014257,2]
[384877067,1757607042785,-290.891914,0.0001431,2]
[384877068,1757607042794,-151.492587,0.0001431,2]
[384877069,1757607042803,-1792.29458287,0.00014311,2]
[384877070,1757607042812,-2105.41764886,0.00014366,2]
[384877071,1757607042822,-480.0,0.00014374,2]
[384877072,1757607042831,-480.0,0.00014374,2]
[384877073,1757607042840,-680.62,0.00014374,2]
[384877074,1757607042849,-478.09510796,0.00014374,2]
[384877075,1757607042858,-480.0,0.00014376,2]
[384877076,1757607042867,-480.0,0.00014376,2]
[384877077,1757607042876,-1414.58,0.00014376,2]
[384877078,1757607042885,-1055.38,0.00014376,2]
[384877079,1757607042894,-480.0,0.00014376,2]
[384877080,1757607042904,-480.0,0.00014376,2]
[384877081,1757607042915,-480.0,0.00014376,2]
[384877082,1757607042924,-672.68,0.00014376,2]
[384877083,1757607042934,-1044.85,0.00014376,2]
[384877084,1757607042943,-786.62,0.00014376,2]
[384877085,1757607042952,-1109.34,0.00014376,2]
[384877086,1757607042962,-480.0,0.00014376,2]
[384877087,1757607042971,-480.0,0.00014376,2]
[384877088,1757607042980,-480.0,0.00014376,2]
[384877089,1757607042990,-480.0,0.00014376,2]
[384877090,1757607042999,-480.0,0.00014376,2]
[384877091,1757607043009,-480.0,0.00014376,2]
[384877092,1757607043019,-480.0,0.00014376,2]
[384877093,1757607043029,-568.74,0.00014376,2]
[384877094,1757607043039,-480.0,0.00014376,2]
[384877095,1757607043048,-19292.2273969,0.00014377,2]
[384877096,1757607043057,-151.0,0.00014377,2]
[384877097,1757607043067,-151.0,0.00014377,2]
[384877098,1757607043078,-151.0,0.00014377,2]
[384877099,1757607043094,-292.317095,0.00014377,2]
[384877101,1757607043103,-279.820868,0.00014377,2]
[384877103,1757607043112,-480.0,0.00014381,2]
[384877105,1757607043123,-480.0,0.00014381,2]
[384877107,1757607043132,-3020.53,0.00014382,2]
[384877109,1757607043141,-687.42,0.00014382,2]
[384877111,1757607043150,-485.09,0.00014383,2]
[384877113,1757607043159,-1252.52,0.00014383,2]
[384877115,1757607043168,-798.18,0.00014383,2]
[384877117,1757607043178,-480.0,0.00014383,2]
[384877119,1757607043187,-1223.84,0.00014383,2]
[384877121,1757607043197,-792.737,0.00014453,2]
[384877123,1757607043206,-195.09753074,0.00014453,2]
[384877125,1757607043215,-938.9,0.00014479,2]
[384877127,1757607043225,-480.0,0.00014479,2]
[384877129,1757607043239,-7133.82,0.00014479,2]
[384877131,1757607043248,-480.0,0.00014479,2]
[384877133,1757607043257,-800.96,0.00014479,2]
[384877135,1757607043267,-480.0,0.00014481,2]
[384877137,1757607043277,-480.0,0.00014481,2]
[384877139,1757607043287,-551.67,0.00014481,2]
[384877141,1757607043296,-480.0,0.00014481,2]
[384877143,1757607043306,-436.43,0.00014481,2]
[384877146,1757607043316,-480.0,0.00014481,2]
[384877148,1757607043326,-480.0,0.00014481,2]
[384877150,1757607043336,-610.64,0.00014481,2]
[384877152,1757607043346,-576.14,0.00014481,2]
[384877154,1757607043355,-480.0,0.00014484,2]
[384877156,1757607043364,-480.0,0.00014486,2]
[384877158,1757607043374,-2918.0784854,0.00014489,2]
[384877160,1757607043383,-5434.8411564,0.00014489,2]
[384877162,1757607043393,-26399.992103,0.00014489,2]
[384877164,1757607043402,-151.0,0.00014496,2]
[384877166,1757607043411,-151.0,0.00014496,2]
[384877168,1757607043420,-157.0,0.00014496,2]
[384877170,1757607043430,-157.0,0.00014496,2]
[384877172,1757607043439,-157.0,0.00014496,2]
[384877174,1757607043448,-157.0,0.00014496,2]
[384877176,1757607043457,-157.0,0.00014496,2]
[384877177,1757607043466,-204.25559514,0.00014496,2]
[384877178,1757607043475,-157.0,0.00014496,2]
[384877179,1757607043485,-500.0,0.00014496,2]
[384877181,1757607043494,-219.73,0.00014496,2]
[384877182,1757607043504,-157.0,0.00014496,2]
[384877183,1757607043513,-500.0,0.00014496,2]
[384877184,1757607043523,-157.0,0.00014496,2]
[384877185,1757607043533,-186.0,0.00014496,2]
[384877186,1757607043543,-157.0,0.00014496,2]
[384877187,1757607043553,-157.0,0.00014496,2]
[384877188,1757607043562,-500.0,0.00014496,2]
[384877189,1757607043572,-157.0,0.00014496,2]
[384877190,1757607043581,-10583.28703691,0.00014507,2]
[384877191,1757607043591,-500.0,0.00014521,2]
[384877192,1757607043602,-389.28198483,0.000146,2]
[384877193,1757607043612,-325.41852989,0.00014613,2]
[384877194,1757607043621,-500.0,0.00014637,2]
[384877196,1757607043631,-500.0,0.00014637,2]
[384877197,1757607043640,-500.0,0.00014637,2]
[384877200,1757607043650,-401.14,0.00014648,2]
[384877201,1757607043660,-510.52,0.00014648,2]
[384877203,1757607043670,-680.62,0.00014648,2]
[384877204,1757607043680,-480.0,0.0001465,2]
[384877205,1757607043689,-480.0,0.0001465,2]
[384877207,1757607043698,-1414.58,0.0001465,2]
[384877208,1757607043709,-1055.38,0.0001465,2]
[384877209,1757607043719,-480.0,0.0001465,2]
[384877210,1757607043729,-480.0,0.0001465,2]
[384877211,1757607043738,-480.0,0.0001465,2]
[384877212,1757607043747,-672.68,0.0001465,2]
[384877213,1757607043757,-1044.85,0.0001465,2]
[384877214,1757607043766,-786.62,0.0001465,2]
[384877215,1757607043775,-1109.34,0.0001465,2]
[384877216,1757607043785,-420.43,0.0001465,2]
[384877217,1757607043795,-480.0,0.0001465,2]
[384877218,1757607043804,-480.0,0.0001465,2]
[384877219,1757607043812,-480.0,0.0001465,2]
[384877220,1757607043821,-480.0,0.0001465,2]
[384877221,1757607043831,-480.0,0.0001465,2]
[384877222,1757607043841,-480.0,0.0001465,2]
[384877223,1757607043850,-568.74,0.0001465,2]
[384877224,1757607043860,-480.0,0.00014655,2]
[384877225,1757607043869,-3020.53,0.00014656,2]
[384877226,1757607043879,-687.42,0.00014656,2]
[384877227,1757607043888,-485.09,0.00014657,2]
[384877228,1757607043898,-1252.52,0.00014657,2]
[384877229,1757607043907,-798.18,0.00014657,2]
[384877230,1757607043916,-480.0,0.00014657,2]
[384877231,1757607043925,-1223.84,0.00014657,2]
[384877232,1757607043934,-1000.0,0.00014658,2]
[384877233,1757607043944,-741.78460125,0.00014737,2]
[384877234,1757607043953,-938.9,0.00014753,2]
[384877235,1757607043963,-480.0,0.00014753,2]
[384877236,1757607043972,-7133.82,0.00014753,2]
[384877237,1757607043981,-480.0,0.00014753,2]
[384877238,1757607043991,-800.96,0.00014753,2]
[384877239,1757607044000,-480.0,0.00014755,2]
[384877240,1757607044009,-480.0,0.00014755,2]
[384877241,1757607044019,-551.67,0.00014755,2]
[384877242,1757607044029,-480.0,0.00014755,2]
[384877243,1757607044038,-480.0,0.00014755,2]
[384877244,1757607044047,-542.31,0.00014755,2]
[384877245,1757607044056,-610.64,0.00014755,2]
[384877246,1757607044066,-576.14,0.00014755,2]
[384877247,1757607044075,-480.0,0.00014758,2]
[384877248,1757607044085,-480.0,0.0001476,2]
[384877249,1757607044094,-500.0,0.00014767,2]
[384877250,1757607044104,-157.0,0.0001477,2]
[384877251,1757607044113,-500.0,0.0001477,2]
[384877252,1757607044123,-186.0,0.0001477,2]
[384877253,1757607044132,-500.0,0.0001477,2]
[384877254,1757607044142,-186.0,0.0001477,2]
[384877255,1757607044152,-157.0,0.0001477,2]
[384877256,1757607044161,-563.5590871,0.0001477,2]
[384877257,1757607044258,-157.0,0.0001477,2]
[384877258,1757607044267,-500.0,0.00014777,2]
[384877259,1757607044277,-1792.29458287,0.0001479,2]
[384877260,1757607044286,-500.0,0.000148,2]
[384877261,1757607044295,-4924.0,0.00014857,2]
[384877262,1757607044304,-2183.31810187,0.00014914,2]
[384877263,1757607044313,-680.62,0.00014922,2]
[384877264,1757607044323,-480.0,0.00014924,2]
[384877265,1757607044332,-480.0,0.00014924,2]
[384877266,1757607044342,-1414.58,0.00014924,2]
[384877267,1757607044351,-1055.38,0.00014924,2]
[384877268,1757607044360,-480.0,0.00014924,2]
[384877269,1757607044370,-480.0,0.00014924,2]
[384877270,1757607044380,-480.0,0.00014924,2]
[384877271,1757607044390,-672.68,0.00014924,2]
[384877272,1757607044399,-1044.85,0.00014924,2]
[384877273,1757607044409,-786.62,0.00014924,2]
[384877274,1757607044419,-1109.34,0.00014924,2]
[384877275,1757607044428,-480.0,0.00014924,2]
[384877276,1757607044438,-480.0,0.00014924,2]
[384877277,1757607044447,-480.0,0.00014924,2]
[384877278,1757607044457,-480.0,0.00014924,2]
[384877279,1757607044467,-480.0,0.00014924,2]
[384877280,1757607044476,-480.0,0.00014924,2]
[384877281,1757607044485,-568.74,0.00014924,2]
[384877282,1757607044495,-10613.59794092,0.00014925,2]
[384877283,1757607044505,-480.0,0.00014929,2]
[384877284,1757607044514,-3020.53,0.0001493,2]
[384877285,1757607044523,-687.42,0.0001493,2]
[384877286,1757607044533,-485.09,0.00014931,2]
[384877287,1757607044543,-1252.52,0.00014931,2]
[384877288,1757607044552,-798.18,0.00014931,2]
[384877289,1757607044562,-480.0,0.00014931,2]
[384877290,1757607044571,-1223.84,0.00014931,2]
[384877291,1757607044580,-500.0,0.00015,2]
[384877292,1757607044590,-163.46235558,0.00015,5]
[384877293,1757607044599,-938.9,0.00015027,2]
[384877294,1757607044608,-480.0,0.00015027,2]
[384877295,1757607044617,-7133.82,0.00015027,2]
[384877296,1757607044627,-480.0,0.00015027,2]
[384877297,1757607044637,-800.96,0.00015027,2]
[384877298,1757607044646,-480.0,0.00015029,2]
[384877299,1757607044656,-480.0,0.00015029,2]
[384877300,1757607044665,-551.67,0.00015029,2]
[384877301,1757607044674,-480.0,0.00015029,2]
[384877302,1757607044683,-480.0,0.00015029,2]
[384877303,1757607044692,-610.64,0.00015029,2]
[384877304,1757607044702,-576.14,0.00015029,2]
[384877305,1757607044711,-480.0,0.00015032,2]
[384877306,1757607044720,-480.0,0.00015034,2]
[384877307,1757607044729,-372.0,0.00015044,2]
[384877308,1757607044739,-500.0,0.00015044,2]
[384877309,1757607044748,-157.0,0.00015044,2]
[384877310,1757607044757,-221.496823,0.00015068,2]
[384877311,1757607044766,-500.0,0.00015068,2]
[384877312,1757607044775,-500.22444433,0.00015084,2]
[384877313,1757607044785,-151.0,0.000151,2]
[384877314,1757607044794,-302.0,0.00015147,2]
[384877315,1757607044803,-420.0,0.00015147,2]
[384877316,1757607044812,-300.0,0.00015147,2]
[384877317,1757607044821,-1680.0,0.00015148,2]
[384877318,1757607044831,-1000.0,0.00015185,2]
[384877319,1757607044840,-1000.0,0.00015185,2]
[384877320,1757607044850,-500.0,0.00015185,2]
[384877321,1757607044859,-680.62,0.00015196,2]
[384877322,1757607044868,-162.380719,0.00015198,2]
[384877323,1757607044878,-480.0,0.00015198,2]
[384877324,1757607044888,-480.0,0.00015198,2]
[384877325,1757607044898,-1414.58,0.00015198,2]
[384877326,1757607044908,-1055.38,0.00015198,2]
[384877327,1757607044918,-480.0,0.00015198,2]
[384877328,1757607044927,-480.0,0.00015198,2]
[384877329,1757607044937,-480.0,0.00015198,2]
[384877330,1757607044946,-672.68,0.00015198,2]
[384877331,1757607044955,-1044.85,0.00015198,2]
[384877332,1757607044965,-786.62,0.00015198,2]
[384877333,1757607044975,-1109.34,0.00015198,2]
[384877334,1757607044984,-480.0,0.00015198,2]
[384877335,1757607044994,-480.0,0.00015198,2]
[384877336,1757607045003,-480.0,0.00015198,2]
[384877337,1757607045012,-480.0,0.00015198,2]
[384877338,1757607045022,-480.0,0.00015198,2]
[384877339,1757607045031,-480.0,0.00015198,2]
[384877340,1757607045041,-568.74,0.00015198,2]
[384877341,1757607045050,-151.0,0.000152,2]
[384877342,1757607045060,-480.0,0.00015203,2]
[384877343,1757607045069,-3020.53,0.00015204,2]
[384877344,1757607045080,-687.42,0.00015204,2]
[384877345,1757607045091,-485.09,0.00015205,2]
[384877346,1757607045101,-1252.52,0.00015205,2]
[384877347,1757607045111,-798.18,0.00015205,2]
[384877348,1757607045121,-480.0,0.00015205,2]
[384877349,1757607045130,-1223.84,0.00015205,2]
[384877350,1757607045140,-1680.0,0.00015206,2]
[384877351,1757607045149,-1792.29458287,0.0001527,2]
[384877352,1757607045159,-500.0,0.0001529,2]
[384877353,1757607045168,-938.9,0.00015301,2]
[384877354,1757607045179,-480.0,0.00015301,2]
[384877355,1757607045188,-7133.82,0.00015301,2]
[384877356,1757607045197,-480.0,0.00015301,2]
[384877357,1757607045207,-800.96,0.00015301,2]
[384877358,1757607045217,-480.0,0.00015303,2]
[384877359,1757607045228,-480.0,0.00015303,2]
[384877360,1757607045242,-551.67,0.00015303,2]
[384877361,1757607045252,-480.0,0.00015303,2]
[384877362,1757607045261,-480.0,0.00015303,2]
[384877363,1757607045271,-610.64,0.00015303,2]
[384877364,1757607045281,-576.14,0.00015303,2]
[384877365,1757607045290,-480.0,0.00015306,2]
[384877366,1757607045299,-221.11,0.00015308,2]
[384877367,1757607045309,-1000.0,0.00015315,2]
[384877368,1757607045318,-500.0,0.00015318,2]
[384877369,1757607045328,-157.0,0.00015318,2]
[384877370,1757607045337,-4924.0,0.00015385,2]
[384877371,1757607045346,-151.0,0.000154,2]
[384877372,1757607045355,-2264.10087164,0.00015462,2]
[384877373,1757607045365,-680.62,0.0001547,2]
[384877374,1757607045374,-480.0,0.00015472,2]
[384877375,1757607045384,-480.0,0.00015472,2]
[384877376,1757607045393,-1414.58,0.00015472,2]
[384877377,1757607045403,-1055.38,0.00015472,2]
[384877378,1757607045412,-480.0,0.00015472,2]
[384877379,1757607045422,-480.0,0.00015472,2]
[384877380,1757607045433,-480.0,0.00015472,2]
[384877381,1757607045442,-672.68,0.00015472,2]
[384877382,1757607045451,-1044.85,0.00015472,2]
[384877383,1757607045460,-786.62,0.00015472,2]
[384877384,1757607045470,-1109.34,0.00015472,2]
[384877385,1757607045480,-480.0,0.00015472,2]
[384877386,1757607045489,-482.37,0.00015472,2]
[384877387,1757607045499,-480.0,0.00015472,2]
[384877388,1757607045509,-480.0,0.00015472,2]
[384877389,1757607045518,-480.0,0.00015472,2]
[384877390,1757607045528,-480.0,0.00015472,2]
[384877391,1757607045538,-568.74,0.00015472,2]
[384877392,1757607045547,-480.0,0.00015477,2]
[384877393,1757607045556,-3020.53,0.00015478,2]
[384877394,1757607045569,-687.42,0.00015478,2]
[384877395,1757607045578,-485.09,0.00015479,2]
[384877396,1757607045587,-1252.52,0.00015479,2]
[384877397,1757607045596,-798.18,0.00015479,2]
[384877398,1757607045606,-480.0,0.00015479,2]
[384877399,1757607045615,-1223.84,0.00015479,2]
[384877400,1757607045624,-720.0,0.00015515,2]
[384877401,1757607045634,-938.9,0.00015575,2]
[384877402,1757607045643,-480.0,0.00015575,2]
[384877403,1757607045653,-7133.82,0.00015575,2]
[384877404,1757607045662,-480.0,0.00015575,2]
[384877405,1757607045671,-800.96,0.00015575,2]
[384877406,1757607045681,-480.0,0.00015577,2]
[384877407,1757607045690,-480.0,0.00015577,2]
[384877408,1757607045699,-551.67,0.00015577,2]
[384877409,1757607045708,-480.0,0.00015577,2]
[384877410,1757607045718,-480.0,0.00015577,2]
[384877411,1757607045727,-610.64,0.00015577,2]
[384877412,1757607045736,-576.14,0.00015577,2]
[384877414,1757607045746,-480.0,0.0001558,2]
[384877415,1757607045755,-500.0,0.00015592,2]
[384877416,1757607045765,-157.0,0.00015592,2]
[384877417,1757607045775,-151.0,0.000156,2]
[384877419,1757607045784,-4924.0,0.0001571,2]
[384877421,1757607045794,-1602.98973203,0.00015733,2]
[384877423,1757607045804,-1500.0,0.00015733,2]
[384877425,1757607045814,-174.59529717,0.00015735,2]
[384877426,1757607045824,-680.62,0.00015744,2]
[384877427,1757607045833,-480.0,0.00015746,2]
[384877428,1757607045843,-480.0,0.00015746,2]
[384877429,1757607045852,-1414.58,0.00015746,2]
[384877430,1757607045861,-1055.38,0.00015746,2]
[384877431,1757607045871,-480.0,0.00015746,2]
[384877432,1757607045881,-480.0,0.00015746,2]
[384877433,1757607045890,-480.0,0.00015746,2]
[384877434,1757607045900,-672.68,0.00015746,2]
[384877435,1757607045911,-1044.85,0.00015746,2]
[384877436,1757607045921,-786.62,0.00015746,2]
[384877437,1757607045931,-1109.34,0.00015746,2]
[384877438,1757607045940,-480.0,0.00015746,2]
[384877439,1757607045950,-480.0,0.00015746,2]
[384877440,1757607045959,-480.0,0.00015746,2]
[384877441,1757607045969,-480.0,0.00015746,2]
[384877442,1757607045979,-480.0,0.00015746,2]
[384877444,1757607045989,-568.74,0.00015746,2]
[384877445,1757607045998,-1792.29458287,0.00015749,2]
[384877448,1757607046008,-480.0,0.00015751,2]
[384877449,1757607046018,-3020.53,0.00015752,2]
[384877451,1757607046027,-687.42,0.00015752,2]
[384877452,1757607046037,-485.09,0.00015753,2]
[384877453,1757607046047,-1252.52,0.00015753,2]
[384877454,1757607046056,-798.18,0.00015753,2]
[384877455,1757607046066,-480.0,0.00015753,2]
[384877456,1757607046075,-1223.84,0.00015753,2]
[384877457,1757607046084,-4924.0,0.00015776,2]
[384877458,1757607046094,-43622.6516467,0.000158,2]
[384877459,1757607046109,-11003.13802142,0.000158,2]
[384877470,1757607046486,-400.8491453,0.00013834,2]
[384877479,1757607086318,175.0,0.00028376,60]
[384877480,1757607127932,1000.0,0.00018637,20]
[384877481,1757607231418,454.52074,0.00013699,2]
[384877483,1757607272638,200.0,0.00026984,120]
[384877499,1757607305065,1883.2024442,0.00013629,2]
[384877506,1757607391878,200.0,0.00027021,120]
[384877509,1757607404629,1324.50116742,0.00013629,2]